bitfinex/quotes_BTCUSD_20240629
["timestamp","ask_amount","ask_price","bid_price","bid_amount"]
[1719668340996,0.0767,61247.0,61246.0,0.1822156]
[1719668341203,0.0787,61247.0,61246.0,0.1832156]
[1719668341824,1.931105,61247.0,61246.0,0.1832156]
[1719668342043,1.931105,61247.0,61246.0,0.54205458]
[1719668342044,0.009,61247.0,61246.0,0.54205458]
[1719668342229,0.009,61247.0,61246.0,0.855676]
[1719668342502,0.0857,61247.0,61246.0,0.683276]
[1719668342712,0.0857,61247.0,61246.0,0.682276]
[1719668342909,0.0767,61247.0,61246.0,0.691276]
[1719668343093,0.0857,61247.0,61246.0,0.692276]
[1719668343291,0.0877,61247.0,61246.0,0.693276]
[1719668343760,0.0877,61247.0,61246.0,0.7616036]
[1719668343761,0.011,61247.0,61246.0,0.7616036]
[1719668343989,0.0857,61247.0,61246.0,0.7616036]
[1719668344188,0.0857,61247.0,61246.0,0.7706036]
[1719668344533,0.0857,61247.0,61246.0,0.7696036]
[1719668344750,0.07754,61247.0,61246.0,0.77534002]
[1719668344950,0.07754,61247.0,61246.0,0.77934002]
[1719668345149,0.07754,61247.0,61246.0,0.78534002]
[1719668345504,0.07754,61247.0,61246.0,0.77934002]
[1719668345828,0.07854,61247.0,61246.0,0.79134002]
[1719668346023,0.07854,61247.0,61246.0,0.77934002]
[1719668346437,0.07954,61247.0,61246.0,0.78734002]
[1719668346851,0.07954,61247.0,61246.0,0.80034002]
[1719668347414,0.07954,61247.0,61246.0,0.78734002]
[1719668347832,0.07954,61247.0,61246.0,0.80034002]
[1719668348252,0.07754,61247.0,61246.0,0.78834002]
[1719668348475,0.07854,61247.0,61246.0,0.80034002]
[1719668349532,0.07754,61247.0,61246.0,0.78834002]
[1719668349693,0.07854,61247.0,61246.0,0.80034002]
[1719668350096,0.07754,61247.0,61246.0,0.77534002]
[1719668350558,0.07754,61247.0,61246.0,0.78834002]
[1719668351028,0.07754,61247.0,61246.0,0.77534002]
[1719668351230,0.00084,61247.0,61246.0,0.77534002]
[1719668351436,0.07754,61247.0,61246.0,0.78834002]
[1719668351612,0.07854,61247.0,61246.0,0.80034002]
[1719668351815,0.07754,61247.0,61246.0,0.78834002]
[1719668352240,0.07854,61247.0,61246.0,0.80034002]
[1719668352439,0.07854,61247.0,61246.0,0.78834002]
[1719668352762,0.07954,61247.0,61246.0,0.80034002]
[1719668353061,0.07854,61247.0,61246.0,0.78834002]
[1719668353298,0.00184,61247.0,61246.0,0.78734002]
[1719668353505,0.07954,61247.0,61246.0,0.78734002]
[1719668353707,0.07954,61247.0,61246.0,0.80034002]
[1719668354055,0.00284,61247.0,61246.0,1.15974002]
[1719668354265,0.00284,61247.0,61246.0,0.95974002]
[1719668354622,0.00084,61247.0,61246.0,0.96174002]
[1719668355013,0.00084,61247.0,61246.0,0.77934002]
[1719668355477,0.00084,61247.0,61246.0,0.78934002]
[1719668355649,0.00184,61247.0,61246.0,0.80334002]
[1719668356082,0.00184,61247.0,61246.0,0.73401242]
[1719668356572,0.00184,61247.0,61246.0,0.72401242]
[1719668357383,0.00184,61247.0,61246.0,0.71001242]
[1719668357527,0.00184,61247.0,61246.0,0.72401242]
[1719668357729,0.00084,61247.0,61246.0,0.71001242]
[1719668357973,0.00184,61247.0,61246.0,0.52851242]
[1719668361328,0.00184,61247.0,61246.0,0.510291]
[1719668361506,0.00184,61247.0,61246.0,0.78160259]
[1719668361704,0.07854,61247.0,61246.0,0.78160259]
[1719668361886,0.07854,61247.0,61246.0,0.78999259]
[1719668362086,0.07854,61247.0,61246.0,0.53690242]
[1719668362493,0.07854,61247.0,61246.0,0.35156344]
[1719668364265,0.07854,61247.0,61246.0,0.33334202]
[1719668365089,0.07854,61247.0,61246.0,0.35156344]
[1719668367922,0.00184,61247.0,61246.0,0.35156344]
[1719668368136,0.07854,61247.0,61246.0,0.35156344]
[1719668373632,0.07854,61247.0,61246.0,0.34317344]
[1719668374043,0.07854,61247.0,61246.0,0.32917344]
[1719668374466,0.07854,61247.0,61246.0,0.33317344]
[1719668374869,0.07754,61247.0,61246.0,0.31917344]
[1719668375074,0.07754,61247.0,61246.0,0.32217344]
[1719668376039,0.07754,61247.0,61246.0,0.30395202]
[1719668376259,0.07754,61247.0,61246.0,0.32217344]
[1719668378399,0.07754,61247.0,61246.0,0.32309744]
[1719668380406,0.2124258,61271.0,61246.0,0.32309744]
[1719668380407,0.18796487,61272.0,61255.0,0.01203513]
[1719668380613,0.48811044,61262.0,61257.0,0.08130346]
[1719668380813,0.0767,61258.0,61257.0,0.08130346]
[1719668380993,1.808442,61258.0,61257.0,0.09594176]
[1719668381194,1.462816,61258.0,61257.0,0.09333859]
[1719668381413,1.237101,61258.0,61257.0,0.09333859]
[1719668381617,1.18607,61258.0,61257.0,0.09333859]
[1719668382402,1.19507,61258.0,61257.0,0.09433859]
[1719668383591,1.19607,61258.0,61257.0,0.09533859]
[1719668386489,1.19607,61258.0,61257.0,0.08330346]
[1719668386679,0.0867,61258.0,61257.0,0.08330346]
[1719668386930,0.0867,61258.0,61257.0,0.09533859]
[1719668387109,0.0867,61258.0,61257.0,0.10997689]
[1719668387110,1.344543,61258.0,61257.0,0.10997689]
[1719668387303,1.336543,61258.0,61257.0,0.10997689]
[1719668387516,1.259843,61258.0,61257.0,0.11356001]
[1719668387691,0.27917,61258.0,61257.0,0.32535317]
[1719668387892,0.305164,61258.0,61257.0,0.33999147]
[1719668388094,0.0867,61258.0,61257.0,0.33999147]
[1719668388663,0.0767,61258.0,61257.0,0.33799147]
[1719668388862,0.2,61273.0,61265.0,0.01203513]
[1719668389108,3.58253498,61272.0,61266.0,0.08130346]
[1719668389308,3.58253498,61272.0,61266.0,0.0958661]
[1719668389309,0.0767,61267.0,61266.0,0.0958661]
[1719668389507,1.554314,61267.0,61266.0,0.08130346]
[1719668389663,0.611413,61267.0,61266.0,0.10449459]
[1719668389869,0.3,61283.0,61268.0,0.01203513]
[1719668389870,0.2,61281.0,61268.0,0.01203513]
[1719668390082,3.214999,61282.0,61269.0,0.01203513]
[1719668390083,3.06918898,61280.0,61269.0,0.01203513]
[1719668390333,0.0767,61270.0,61269.0,0.01203513]
[1719668390491,1.186853,61270.0,61269.0,0.01203513]
[1719668390688,1.177689,61270.0,61269.0,0.0265719]
[1719668390933,1.177689,61270.0,61269.0,0.01203513]
[1719668391338,1.100989,61270.0,61267.0,0.19425073]
[1719668391574,0.0767,61270.0,61267.0,0.19425073]
[1719668391747,1.59364,61269.0,61268.0,0.02658031]
[1719668391953,1.59364,61269.0,61268.0,0.01203513]
[1719668392158,1.59364,61269.0,61268.0,0.01303513]
[1719668392488,1.59364,61269.0,61268.0,0.01203513]
[1719668392820,1.59364,61269.0,61268.0,0.01199372]
[1719668393434,1.59364,61269.0,61268.0,0.002]
[1719668393435,1.60164,61269.0,61268.0,0.002]
[1719668394838,1.60854,61269.0,61268.0,0.002]
[1719668395005,1.60164,61269.0,61268.0,0.002]
[1719668395198,0.899791,61269.0,61268.0,0.002]
[1719668395740,0.899791,61269.0,61268.0,0.01654464]
[1719668395914,0.899791,61269.0,61268.0,0.002]
[1719668396493,0.899791,61269.0,61268.0,0.02853836]
[1719668396693,0.899791,61269.0,61268.0,0.01654464]
[1719668397053,0.899791,61269.0,61268.0,0.02853836]
[1719668397456,0.008,61269.0,61268.0,0.01654464]
[1719668397663,1.263175,61269.0,61268.0,0.02853836]
[1719668399850,0.281124,61269.0,61268.0,0.22897538]
[1719668400050,0.281124,61269.0,61268.0,0.31847538]
[1719668400415,0.0847,61269.0,61268.0,0.31847538]
[1719668400724,0.0847,61269.0,61268.0,0.65806224]
[1719668400847,0.0847,61269.0,61268.0,0.75806224]
[1719668401042,0.0847,61269.0,61268.0,0.70741436]
[1719668402308,0.0069,61286.0,61268.0,0.70541436]
[1719668402508,0.48811044,61284.0,61278.0,0.01199372]
[1719668402730,1.918613,61283.0,61279.0,0.1822156]
[1719668402910,0.0767,61280.0,61279.0,0.1822156]
[1719668403118,1.420083,61280.0,61279.0,0.1822156]
[1719668403326,1.379216,61280.0,61279.0,0.1822156]
[1719668403958,1.379216,61280.0,61279.0,0.1832156]
[1719668404153,1.379216,61280.0,61279.0,0.1822156]
[1719668404356,1.379216,61280.0,61273.0,0.1822156]
[1719668404575,0.0069,61278.0,61275.0,0.1822156]
[1719668404827,0.0069,61278.0,61276.0,0.1822156]
[1719668404828,2.729424,61277.0,61276.0,0.1822156]
[1719668405019,2.806124,61277.0,61276.0,0.1822156]
[1719668405222,2.806124,61277.0,61273.0,0.1822156]
[1719668405385,0.191,61274.0,61273.0,0.1822156]
[1719668405577,2.546312,61274.0,61273.0,0.1822156]
[1719668406079,2.546312,61274.0,61269.0,0.1822156]
[1719668406282,3.172824,61273.0,61269.0,0.1822156]
[1719668406484,2.474644,61272.0,61270.0,0.01446183]
[1719668406701,2.008116,61271.0,61270.0,0.01446183]
[1719668406909,0.191,61274.0,61273.0,0.1822156]
[1719668407108,0.517369,61274.0,61273.0,0.20020932]
[1719668407310,0.738592,61274.0,61273.0,0.2269184]
[1719668407661,0.610072,61274.0,61273.0,0.2269184]
[1719668408390,0.191,61274.0,61273.0,0.2269184]
[1719668408596,0.191,61274.0,61273.0,0.20869698]
[1719668409133,0.0069,61281.0,61273.0,0.20869698]
[1719668409134,0.582515,61278.0,61277.0,0.01199372]
[1719668409334,0.191,61278.0,61277.0,0.01199372]
[1719668409543,0.191,61278.0,61277.0,0.02644776]
[1719668409900,1.177962,61278.0,61277.0,0.19420932]
[1719668410112,1.252941,61278.0,61277.0,0.19420932]
[1719668410313,1.252941,61278.0,61277.0,0.20866336]
[1719668410525,1.252941,61278.0,61277.0,0.19420932]
[1719668410881,1.218775,61278.0,61277.0,0.19420932]
[1719668411291,1.221775,61278.0,61277.0,0.1822156]
[1719668411868,1.221775,61278.0,61276.0,0.1822156]
[1719668412021,1.649474,61277.0,61276.0,0.1822156]
[1719668412230,1.649474,61277.0,61276.0,0.19667805]
[1719668412581,1.661674,61277.0,61276.0,0.01446245]
[1719668412946,1.661674,61277.0,61274.0,0.1822156]
[1719668413299,2.23541,61276.0,61274.0,0.1822156]
[1719668413629,2.142474,61276.0,61274.0,0.1822156]
[1719668413833,1.886234,61276.0,61274.0,0.1822156]
[1719668414028,2.244479,61276.0,61274.0,0.1822156]
[1719668414867,1.035478,61276.0,61274.0,0.1822156]
[1719668415071,0.191,61275.0,61274.0,0.19420932]
[1719668415274,0.996622,61275.0,61274.0,0.19420932]
[1719668415471,0.996622,61275.0,61274.0,0.20868857]
[1719668415677,0.996622,61275.0,61274.0,0.19420932]
[1719668415876,0.996622,61275.0,61274.0,0.20868857]
[1719668416500,0.996622,61275.0,61274.0,0.19669485]
[1719668417013,0.996622,61275.0,61274.0,0.01447925]
[1719668417218,0.996622,61275.0,61270.0,0.000924]
[1719668417368,2.716405,61274.0,61271.0,0.01450447]
[1719668418329,2.691882,61274.0,61271.0,0.01450447]
[1719668418534,2.511755,61273.0,61271.0,0.01450447]
[1719668418735,2.691882,61274.0,61271.0,0.01450447]
[1719668418979,1.780828,61272.0,61271.0,0.01450447]
[1719668419205,2.511755,61273.0,61271.0,0.01444552]
[1719668419418,0.193,61275.0,61271.0,0.01444552]
[1719668419419,0.191,61275.0,61271.0,0.01444552]
[1719668419564,2.521281,61274.0,61270.0,0.000924]
[1719668419776,2.521281,61274.0,61272.0,0.01448624]
[1719668419981,2.521281,61274.0,61270.0,0.000924]
[1719668422839,2.521281,61274.0,61270.0,0.01291772]
[1719668423041,2.43576,61274.0,61272.0,0.01199372]
[1719668423249,2.471852,61274.0,61272.0,0.01199372]
[1719668423457,2.471852,61274.0,61271.0,0.01199372]
[1719668423458,2.405978,61274.0,61271.0,0.01199372]
[1719668423663,2.446853,61274.0,61271.0,0.01199372]
[1719668424899,2.447853,61274.0,61271.0,0.01199372]
[1719668425100,2.3076,61273.0,61271.0,0.01199372]
[1719668425319,0.0764,61272.0,61271.0,0.01199372]
[1719668425483,1.160689,61272.0,61271.0,0.01199372]
[1719668425696,0.685616,61272.0,61271.0,0.01199372]
[1719668425891,0.685616,61272.0,61271.0,0.0347875]
[1719668426093,0.685616,61272.0,61271.0,0.02648825]
[1719668426431,0.685616,61272.0,61271.0,0.02748825]
[1719668428292,0.685616,61272.0,61271.0,0.02648825]
[1719668428702,0.685616,61272.0,61271.0,0.02848825]
[1719668429259,0.685616,61272.0,61271.0,0.02948825]
[1719668430274,0.975502,61272.0,61271.0,0.02948825]
[1719668430445,0.589569,61272.0,61271.0,0.02948825]
[1719668430648,0.589569,61272.0,61271.0,0.04770967]
[1719668431782,0.589569,61272.0,61271.0,0.02073747]
[1719668432562,0.326172,61272.0,61271.0,0.22117449]
[1719668432768,0.0764,61272.0,61271.0,0.40817449]
[1719668433787,0.399685,61272.0,61271.0,0.40817449]
[1719668433988,0.323285,61272.0,61271.0,0.40817449]
[1719668434210,0.296769,61272.0,61271.0,0.40817449]
[1719668434382,0.0764,61272.0,61271.0,0.40817449]
[1719668435598,0.0764,61272.0,61271.0,0.42799954]
[1719668435801,0.26539656,61290.0,61279.0,0.1822156]
[1719668435802,0.0078,61290.0,61279.0,0.1822156]
[1719668436000,0.0764,61280.0,61279.0,0.1822156]
[1719668436206,1.923741,61280.0,61279.0,0.1822156]
[1719668437229,1.923741,61280.0,61279.0,0.001]
[1719668437407,2.09507471,61280.0,61279.0,0.001]
[1719668439677,1.932741,61280.0,61279.0,0.001]
[1719668439879,1.902741,61280.0,61279.0,0.001]
[1719668440211,1.908041,61280.0,61279.0,0.001]
[1719668441806,2.07287998,61280.0,61279.0,0.001]
[1719668442005,2.07287998,61280.0,61271.0,0.002]
[1719668442208,0.0764,61272.0,61271.0,0.002]
[1719668442423,2.055506,61272.0,61271.0,0.00774384]
[1719668442630,2.100506,61272.0,61270.0,0.084424]
[1719668442825,1.902515,61271.0,61270.0,0.084424]
[1719668443255,0.0764,61272.0,61270.0,0.084424]
[1719668443602,1.537515,61271.0,61270.0,0.084424]
[1719668443929,1.187515,61271.0,61270.0,0.084424]
[1719668444632,1.187515,61271.0,61270.0,0.086424]
[1719668446432,1.3139905,61271.0,61270.0,0.002924]
[1719668446659,1.3139905,61271.0,61270.0,0.000924]
[1719668447243,1.187515,61271.0,61270.0,0.003924]
[1719668449735,1.187515,61271.0,61270.0,0.00967003]
[1719668449923,1.187515,61271.0,61270.0,0.003924]
[1719668450126,1.187515,61271.0,61270.0,0.00967003]
[1719668450324,1.187515,61271.0,61270.0,0.005924]
[1719668450532,1.187515,61271.0,61270.0,0.01167003]
[1719668450962,1.187515,61271.0,61270.0,0.00967003]
[1719668452643,1.196515,61271.0,61270.0,0.00767003]
[1719668452934,1.35885398,61271.0,61258.0,0.7364156]
[1719668453112,1.35885398,61271.0,61244.0,0.01]
[1719668453113,0.0025,61269.0,61252.0,0.19420932]
[1719668453324,1.196515,61271.0,61252.0,0.19420932]
[1719668453325,0.0025,61267.0,61252.0,0.19420932]
[1719668453496,0.0764,61253.0,61252.0,0.19420932]
[1719668453742,1.600847,61253.0,61252.0,0.19420932]
[1719668454558,1.253162,61253.0,61252.0,0.2937342]
[1719668454804,1.121639,61253.0,61252.0,0.2937342]
[1719668457132,1.121639,61253.0,61252.0,0.27551278]
[1719668457316,1.121639,61253.0,61252.0,0.2937342]
[1719668457524,1.121639,61253.0,61252.0,0.2947342]
[1719668458112,1.121639,61253.0,61252.0,0.2937342]
[1719668459094,1.123639,61253.0,61252.0,0.2937342]
[1719668459259,1.129639,61253.0,61252.0,0.2947342]
[1719668459459,1.129639,61253.0,61252.0,0.27651278]
[1719668459681,1.129639,61253.0,61252.0,0.2947342]
[1719668459902,1.129639,61253.0,61252.0,0.26451906]
[1719668460522,1.129639,61253.0,61252.0,0.27180691]
[1719668461149,1.129639,61253.0,61252.0,0.30202205]
[1719668462882,0.479959,61253.0,61252.0,0.30202205]
[1719668462998,0.414559,61253.0,61252.0,0.30202205]
[1719668465276,0.0844,61253.0,61252.0,0.74684589]
[1719668465505,0.0824,61253.0,61252.0,0.78706103]
[1719668465697,0.0764,61253.0,61252.0,0.78601729]
[1719668465888,0.07959274,61284.0,61267.0,0.19962217]
[1719668466090,0.0764,61268.0,61267.0,0.19962217]
[1719668466440,0.98977,61268.0,61267.0,0.21991514]
[1719668466645,1.07899,61268.0,61267.0,0.1897]
[1719668466995,0.16229027,61283.0,61267.0,0.499087]
[1719668467199,0.0764,61268.0,61267.0,0.499087]
[1719668467811,0.16229027,61283.0,61266.0,0.18430346]
[1719668467812,2.095238,61279.0,61273.0,0.02029297]
[1719668467963,0.16229027,61283.0,61276.0,0.01199372]
[1719668467964,1.450645,61278.0,61276.0,0.01199372]
[1719668468363,0.0764,61277.0,61276.0,0.01199372]
[1719668468577,0.0764,61277.0,61276.0,0.07168242]
[1719668469008,0.0764,61277.0,61276.0,0.01199372]
[1719668469400,1.722247,61277.0,61276.0,0.01199372]
[1719668470350,1.298689,61277.0,61276.0,0.01199372]
[1719668470745,1.300689,61277.0,61276.0,0.01299372]
[1719668472709,1.312689,61277.0,61276.0,0.01399372]
[1719668473274,0.596103,61277.0,61276.0,0.202]
[1719668473653,0.596103,61277.0,61276.0,0.23221514]
[1719668474193,0.596103,61277.0,61276.0,0.36288698]
[1719668474194,0.519703,61277.0,61276.0,0.36288698]
[1719668474399,0.014,61277.0,61276.0,0.65035884]
[1719668474599,0.0904,61277.0,61276.0,0.65035884]
[1719668475218,0.0904,61277.0,61276.0,0.601687]
[1719668475840,0.0784,61277.0,61276.0,0.600687]
[1719668476186,0.0784,61277.0,61276.0,0.602687]
[1719668477832,0.0764,61277.0,61276.0,0.601687]
[1719668478260,0.0764,61277.0,61276.0,0.60263064]
[1719668478665,0.0764,61277.0,61276.0,0.67202405]
[1719668478875,0.0764,61277.0,61276.0,0.67102405]
[1719668479669,0.0764,61277.0,61276.0,0.67926499]
[1719668480641,0.00084,61283.0,61282.0,0.41233064]
[1719668480843,0.07724,61283.0,61282.0,0.59963064]
[1719668481017,0.07724,61283.0,61282.0,0.60784962]
[1719668481989,0.00084,61283.0,61282.0,0.60784962]
[1719668482212,0.07724,61283.0,61282.0,0.59963064]
[1719668482408,0.17748,61283.0,61282.0,0.59963064]
[1719668482614,0.07924,61283.0,61282.0,0.60784962]
[1719668482819,0.17948,61283.0,61282.0,0.60784962]
[1719668483019,0.07924,61283.0,61282.0,0.60784962]
[1719668483222,0.17948,61283.0,61282.0,0.60784962]
[1719668483420,0.08524,61283.0,61282.0,0.60884962]
[1719668483621,0.0850436,61283.0,61282.0,0.60884962]
[1719668484096,0.0830436,61283.0,61282.0,0.60884962]
[1719668484426,0.0790436,61283.0,61282.0,0.60784962]
[1719668485037,0.0770436,61283.0,61282.0,0.59963064]
[1719668485230,0.0790436,61283.0,61282.0,0.60784962]
[1719668485637,0.0026436,61283.0,61282.0,0.60784962]
[1719668485845,0.0790436,61283.0,61282.0,0.60784962]
[1719668486220,0.0790436,61283.0,61282.0,0.59963064]
[1719668486422,0.0790436,61283.0,61282.0,0.60784962]
[1719668487078,0.5482666,61283.0,61282.0,0.60884962]
[1719668487812,0.5422666,61283.0,61282.0,0.60784962]
[1719668487985,0.5482666,61283.0,61282.0,0.60884962]
[1719668488184,0.5482666,61283.0,61282.0,0.60784962]
[1719668488386,0.5462666,61283.0,61282.0,0.60784962]
[1719668488550,0.5482666,61283.0,61282.0,0.60784962]
[1719668488746,0.3244616,61283.0,61282.0,0.59963064]
[1719668488952,0.4008616,61283.0,61282.0,0.59963064]
[1719668489191,0.4008616,61283.0,61282.0,0.60784926]
[1719668489398,0.3988616,61283.0,61282.0,0.60784926]
[1719668490002,0.3998616,61283.0,61282.0,0.60784926]
[1719668490210,0.4119616,61283.0,61282.0,0.20821862]
[1719668492012,0.3234616,61283.0,61282.0,0.5896842]
[1719668492181,0.3018646,61283.0,61282.0,0.57769048]
[1719668492382,0.3018646,61283.0,61282.0,0.60784926]
[1719668492786,0.2958646,61283.0,61282.0,0.60784926]
[1719668492986,0.2938646,61283.0,61282.0,0.60784926]
[1719668493164,0.2928646,61283.0,61282.0,0.60784926]
[1719668493348,0.2928646,61283.0,61282.0,0.57769048]
[1719668493349,0.0770436,61283.0,61282.0,0.57769048]
[1719668493550,0.0770436,61283.0,61282.0,0.60784926]
[1719668494259,0.0790436,61283.0,61282.0,0.60884926]
[1719668494497,0.0820436,61283.0,61282.0,0.60884926]
[1719668494899,0.0790436,61283.0,61282.0,0.60884926]
[1719668495307,0.0810436,61283.0,61282.0,0.60884926]
[1719668495463,0.1877146,61283.0,61282.0,0.60884926]
[1719668495653,0.1113146,61283.0,61282.0,0.60884926]
[1719668495878,0.1877146,61283.0,61282.0,0.60884926]
[1719668496459,0.0810436,61283.0,61282.0,0.60884926]
[1719668496663,0.0790436,61283.0,61282.0,0.60784926]
[1719668497065,0.0800436,61283.0,61282.0,0.60784926]
[1719668499999,0.0800436,61283.0,61282.0,0.66963419]
[1719668500215,0.0800436,61283.0,61282.0,0.60784926]
[1719668502923,0.0800436,61283.0,61282.0,0.61784926]
[1719668503299,0.0800436,61283.0,61282.0,0.60784926]
[1719668509762,0.0036436,61283.0,61282.0,0.60784926]
[1719668509920,0.0800436,61283.0,61282.0,0.60784926]
[1719668512922,0.0800436,61283.0,61282.0,0.603574]
[1719668513281,0.0800436,61283.0,61282.0,0.59114476]
[1719668516302,0.0800436,61283.0,61282.0,0.37368598]
[1719668516515,0.0949436,61283.0,61282.0,0.37368598]
[1719668516715,0.10443796,61283.0,61282.0,0.37368598]
[1719668517156,0.59189396,61283.0,61282.0,0.37368598]
[1719668517367,0.59189396,61283.0,61282.0,0.19151412]
[1719668517368,1.59310196,61283.0,61282.0,0.19151412]
[1719668517571,2.01160096,61283.0,61282.0,0.19151412]
[1719668517793,1.94037796,61283.0,61282.0,0.1832955]
[1719668518426,1.93837796,61283.0,61282.0,0.1832955]
[1719668518811,1.94737796,61283.0,61282.0,0.1842955]
[1719668519175,1.94737796,61283.0,61281.0,0.1832955]
[1719668519520,2.34715171,61282.0,61281.0,0.1832955]
[1719668519672,2.36205171,61282.0,61281.0,0.1832955]
[1719668520486,2.36205171,61282.0,61274.0,0.1832955]
[1719668520487,2.50949069,61282.0,61274.0,0.1832955]
[1719668520714,0.02713796,61283.0,61274.0,0.1832955]
[1719668520715,0.0913,61275.0,61274.0,0.1832955]
[1719668520883,2.463137,61275.0,61274.0,0.1832955]
[1719668521090,2.413465,61275.0,61274.0,0.1832955]
[1719668521695,2.413465,61275.0,61274.0,0.1842955]
[1719668522244,2.380788,61275.0,61274.0,0.1832955]
[1719668522996,2.383788,61275.0,61274.0,0.1832955]
[1719668523761,2.385788,61275.0,61274.0,0.1832955]
[1719668527493,2.639807,61275.0,61274.0,0.1832955]
[1719668527700,2.639806,61275.0,61274.0,0.1832955]
[1719668527924,2.639806,61275.0,61274.0,0.18322569]
[1719668528115,2.492677,61275.0,61274.0,0.18322569]
[1719668532852,2.492677,61275.0,61274.0,0.18330869]
[1719668534838,2.477777,61275.0,61274.0,0.18330869]
[1719668535043,1.553193,61275.0,61274.0,0.19530241]
[1719668535286,1.541687,61275.0,61274.0,0.19530241]
[1719668535420,1.229137,61275.0,61274.0,0.20266939]
[1719668536103,1.229137,61275.0,61274.0,0.19067567]
[1719668538187,0.0814,61275.0,61274.0,0.19067567]
[1719668539002,1.810316,61275.0,61274.0,0.20266939]
[1719668539408,1.774225,61275.0,61274.0,0.20266939]
[1719668539779,1.744916,61275.0,61274.0,0.20266939]
[1719668540594,1.716825,61275.0,61274.0,0.20266939]
[1719668542177,1.716825,61275.0,61274.0,0.20260013]
[1719668543344,1.568125,61275.0,61274.0,0.20260013]
[1719668545352,1.568125,61275.0,61274.0,0.20352413]
[1719668545511,1.568965,61275.0,61274.0,0.20352413]
[1719668546067,1.525858,61275.0,61274.0,0.20352413]
[1719668546513,1.489768,61275.0,61274.0,0.20352413]
[1719668548252,1.22759463,61275.0,61274.0,0.20352413]
[1719668548425,0.0764,61275.0,61274.0,0.20352413]
[1719668548857,0.0764,61275.0,61274.0,0.19615715]
[1719668549030,0.0764,61275.0,61274.0,0.20352405]
[1719668549374,1.498647,61275.0,61274.0,0.20352405]
[1719668551450,1.498647,61275.0,61274.0,0.19153033]
[1719668551658,1.498647,61275.0,61274.0,0.19520855]
[1719668554831,1.498647,61275.0,61274.0,0.20720227]
[1719668555763,1.498647,61275.0,61274.0,0.19520855]
[1719668556368,1.499447,61275.0,61274.0,0.19520855]
[1719668560719,1.499447,61275.0,61263.0,0.18217186]
[1719668560720,1.66098598,61275.0,61263.0,0.18217186]
[1719668560933,0.0764,61264.0,61258.0,0.28555643]
[1719668561130,4.14171526,61274.0,61260.0,0.65065643]
[1719668561131,0.0764,61261.0,61260.0,0.65065643]
[1719668561335,0.0764,61261.0,61260.0,0.18315643]
[1719668561336,2.868907,61261.0,61260.0,0.18315643]
[1719668561559,2.819235,61261.0,61260.0,0.18315643]
[1719668562164,2.819235,61261.0,61260.0,0.18415643]
[1719668562716,2.819235,61261.0,61259.0,0.26445989]
[1719668562931,0.0784,61261.0,61260.0,0.18415643]
[1719668563106,0.0924,61261.0,61260.0,0.18515643]
[1719668564081,3.13181571,61261.0,61260.0,0.001]
[1719668564282,3.13181571,61261.0,61258.0,0.18315643]
[1719668564283,3.066579,61261.0,61258.0,0.18315643]
[1719668564486,2.34676,61260.0,61258.0,0.18315643]
[1719668565392,2.297088,61260.0,61259.0,0.08130346]
[1719668566010,2.310088,61260.0,61259.0,0.08130346]
[1719668566362,2.45942171,61260.0,61259.0,0.08130346]
[1719668566917,2.47242171,61260.0,61259.0,0.08230346]
[1719668567525,2.310088,61260.0,61259.0,0.08230346]
[1719668567733,2.313088,61260.0,61259.0,0.08330346]
[1719668569987,0.016,61260.0,61259.0,0.08330346]
[1719668570203,2.42503,61260.0,61259.0,0.09631882]
[1719668570609,2.42503,61260.0,61259.0,0.08330346]
[1719668574647,2.42503,61260.0,61259.0,0.08324441]
[1719668579189,2.42503,61260.0,61259.0,0.08416841]
[1719668583731,2.42503,61260.0,61259.0,0.09616213]
[1719668583932,1.709957,61260.0,61259.0,0.08416841]
[1719668584144,1.786357,61260.0,61259.0,0.09718377]
[1719668584358,1.786357,61260.0,61259.0,0.08416841]
[1719668584762,1.786357,61260.0,61259.0,0.09616213]
[1719668584938,1.786357,61260.0,61259.0,0.09718377]
[1719668586752,1.214832,61260.0,61259.0,0.10917749]
[1719668586977,1.038903,61260.0,61259.0,0.30157749]
[1719668587516,1.038903,61260.0,61259.0,0.28958377]
[1719668587744,1.038903,61260.0,61259.0,0.30157749]
[1719668588093,1.038903,61260.0,61259.0,0.3015179]
[1719668588324,1.619248,61260.0,61259.0,0.3005179]
[1719668588502,1.619248,61260.0,61259.0,0.28852418]
[1719668588503,1.672658,61260.0,61259.0,0.28852418]
[1719668588708,1.675658,61260.0,61259.0,0.28952418]
[1719668589384,1.662658,61260.0,61259.0,0.28864282]
[1719668589801,1.671658,61260.0,61259.0,0.28964282]
[1719668589974,1.659658,61260.0,61259.0,0.28764282]
[1719668590208,1.659658,61260.0,61259.0,0.28864282]
[1719668590411,1.671658,61260.0,61259.0,0.28964282]
[1719668591270,1.662658,61260.0,61259.0,0.28864282]
[1719668591895,1.662658,61260.0,61259.0,0.28764282]
[1719668591896,1.659658,61260.0,61259.0,0.28764282]
[1719668592434,1.673658,61260.0,61259.0,0.28864282]
[1719668593178,1.673658,61260.0,61259.0,0.30063654]
[1719668593338,1.676658,61260.0,61259.0,0.30163654]
[1719668593953,1.600258,61260.0,61259.0,0.30163654]
[1719668594154,1.676658,61260.0,61259.0,0.30163654]
[1719668594541,1.676658,61260.0,61259.0,0.30063654]
[1719668594542,1.673658,61260.0,61259.0,0.30063654]
[1719668594953,1.676658,61260.0,61259.0,0.30163654]
[1719668595788,1.662658,61260.0,61259.0,0.30063654]
[1719668596316,1.675658,61260.0,61259.0,0.30163654]
[1719668597647,1.675658,61260.0,61259.0,0.28964282]
[1719668598449,0.784091,61260.0,61259.0,0.28964282]
[1719668598628,0.784091,61260.0,61259.0,0.30163654]
[1719668599473,0.784091,61260.0,61259.0,0.28964282]
[1719668599694,0.784091,61260.0,61259.0,0.30163654]
[1719668600979,0.784091,61260.0,61259.0,0.28964282]
[1719668601373,0.784091,61260.0,61259.0,0.30163654]
[1719668602190,0.784091,61260.0,61259.0,0.28964282]
[1719668602527,0.321404,61260.0,61259.0,0.30163654]
[1719668603157,0.321404,61260.0,61259.0,0.30157251]
[1719668604791,0.321404,61260.0,61259.0,0.28957879]
[1719668610234,0.0894,61260.0,61259.0,0.28857879]
[1719668610554,0.0764,61260.0,61259.0,0.28757879]
[1719668610723,0.0794,61260.0,61259.0,0.28857879]
[1719668610926,0.0924,61260.0,61259.0,0.28957879]